[Event "*** SCC Grand Prix: Titled Tuesday Blitz"]
[Site "Chess.com"]
[Date "2020.10.06"]
[Round "5"]
[White "esapunov"]
[Black "MrTattaglia"]
[Result "0-1"]
[WhiteElo "2646"]
[BlackElo "2886"]
[TimeControl "180+1"]
[EndTime "10:58:40 PDT"]
[Termination "MrTattaglia won on time"]

1. c4 {[%clk 0:02:58.7]} 1... Nf6 {[%clk 0:02:58.1]} 2. Nf3 {[%clk 0:02:58.9]}
2... e6 {[%clk 0:02:58.3]} 3. Nc3 {[%clk 0:02:59.1]} 3... c5 {[%clk 0:02:57.9]}
4. g3 {[%clk 0:02:58.5]} 4... b6 {[%clk 0:02:58.2]} 5. Bg2 {[%clk 0:02:58.8]}
5... Bb7 {[%clk 0:02:58.7]} 6. O-O {[%clk 0:02:59.4]} 6... Be7 {[%clk
0:02:58.4]} 7. Re1 {[%clk 0:03:00]} 7... O-O {[%clk 0:02:58]} 8. e4 {[%clk
0:03:00.2]} 8... Nc6 {[%clk 0:02:55.3]} 9. e5 {[%clk 0:02:47]} 9... Ne8 {[%clk
0:02:37.9]} 10. d4 {[%clk 0:02:46.4]} 10... Nxd4 {[%clk 0:02:37.5]} 11. Nxd4
{[%clk 0:02:46.1]} 11... Bxg2 {[%clk 0:02:37.4]} 12. Nxe6 {[%clk 0:02:39.2]}
12... fxe6 {[%clk 0:02:28.9]} 13. Kxg2 {[%clk 0:02:37.9]} 13... Nc7 {[%clk
0:02:26.9]} 14. Ne4 {[%clk 0:02:32.3]} 14... b5 {[%clk 0:02:23.2]} 15. b3 {[%clk
0:02:30.9]} 15... bxc4 {[%clk 0:02:23.2]} 16. bxc4 {[%clk 0:02:30.7]} 16... Rf5
{[%clk 0:02:23.6]} 17. Bb2 {[%clk 0:02:26.5]} 17... Na6 {[%clk 0:02:18.8]} 18.
Bc3 {[%clk 0:02:08.9]} 18... Nb4 {[%clk 0:02:17]} 19. Qd2 {[%clk 0:02:02.1]}
19... Nc6 {[%clk 0:02:14.9]} 20. f4 {[%clk 0:02:02.3]} 20... Qc7 {[%clk
0:02:11.3]} 21. Rad1 {[%clk 0:02:00.3]} 21... Rd8 {[%clk 0:02:11.7]} 22. h4
{[%clk 0:01:59.6]} 22... Qb7 {[%clk 0:02:06.5]} 23. Kh3 {[%clk 0:01:57.8]} 23...
h6 {[%clk 0:02:04.1]} 24. Rf1 {[%clk 0:01:51.3]} 24... Qa8 {[%clk 0:02:00]} 25.
Qe3 {[%clk 0:01:49.2]} 25... Qc8 {[%clk 0:01:53.6]} 26. g4 {[%clk 0:01:47]}
26... Rf7 {[%clk 0:01:52.3]} 27. h5 {[%clk 0:01:47.1]} 27... Qa6 {[%clk
0:01:51.9]} 28. f5 {[%clk 0:01:39.1]} 28... Qxc4 {[%clk 0:01:37]} 29. f6 {[%clk
0:01:38.6]} 29... Bf8 {[%clk 0:01:37.2]} 30. g5 {[%clk 0:01:34.9]} 30... hxg5
{[%clk 0:01:27.8]} 31. Nxg5 {[%clk 0:01:34]} 31... gxf6 {[%clk 0:01:20.5]} 32.
Nxf7 {[%clk 0:01:15.6]} 32... Kxf7 {[%clk 0:01:14]} 33. Rxf6+ {[%clk 0:01:14.8]}
33... Ke8 {[%clk 0:01:13.6]} 34. Qg3 {[%clk 0:01:03.2]} 34... d6 {[%clk
0:00:56.4]} 35. exd6 {[%clk 0:00:53.5]} 35... Bxd6 {[%clk 0:00:54.9]} 36. Rxd6
{[%clk 0:00:42.8]} 36... Rxd6 {[%clk 0:00:54.8]} 37. Rf3 {[%clk 0:00:28.8]}
37... Rd1 {[%clk 0:00:47.2]} 38. h6 {[%clk 0:00:24]} 38... Ne7 {[%clk
0:00:37.4]} 39. h7 {[%clk 0:00:20.7]} 39... Rh1+ {[%clk 0:00:30.5]} 40. Kg2
{[%clk 0:00:16]} 40... Rxh7 {[%clk 0:00:30.7]} 41. Qb8+ {[%clk 0:00:14.9]} 41...
Kd7 {[%clk 0:00:31]} 42. Qb7+ {[%clk 0:00:14.8]} 42... Kd6 {[%clk 0:00:30]} 43.
Qb8+ {[%clk 0:00:12.3]} 43... Kc6 {[%clk 0:00:29.7]} 44. Qa8+ {[%clk 0:00:12.2]}
44... Kb6 {[%clk 0:00:27.9]} 45. Qb8+ {[%clk 0:00:12.6]} 45... Ka6 {[%clk
0:00:27.7]} 46. Bd4 {[%clk 0:00:07.5]} 46... Qe2+ {[%clk 0:00:23.2]} 47. Bf2
{[%clk 0:00:07.7]} 47... Rg7+ {[%clk 0:00:22.6]} 48. Rg3 {[%clk 0:00:08.1]}
48... Qe4+ {[%clk 0:00:21]} 49. Kg1 {[%clk 0:00:07.6]} 49... Rxg3+ {[%clk
0:00:21.3]} 50. Bxg3 {[%clk 0:00:08]} 50... Qc6 {[%clk 0:00:16.2]} 51. Bf2
{[%clk 0:00:06.4]} 51... Nd5 {[%clk 0:00:16.5]} 52. Qb3 {[%clk 0:00:05.9]} 52...
Nb6 {[%clk 0:00:15.4]} 53. Qa3+ {[%clk 0:00:05.8]} 53... Na4 {[%clk 0:00:15.6]}
54. Qb3 {[%clk 0:00:05.1]} 54... c4 {[%clk 0:00:15.2]} 55. Qb8 {[%clk
0:00:04.5]} 55... Nb6 {[%clk 0:00:15.1]} 56. Qe5 {[%clk 0:00:03.5]} 56... c3
{[%clk 0:00:14.9]} 57. Be3 {[%clk 0:00:03.8]} 57... c2 {[%clk 0:00:14.6]} 58.
Bc1 {[%clk 0:00:04]} 58... Qc4 {[%clk 0:00:14.5]} 59. Qe3 {[%clk 0:00:03.4]}
59... Qxa2 {[%clk 0:00:13.9]} 60. Kf2 {[%clk 0:00:03.3]} 60... Qc4 {[%clk
0:00:14]} 61. Ke1 {[%clk 0:00:03.2]} 61... Kb7 {[%clk 0:00:11.8]} 62. Kd2 {[%clk
0:00:03.2]} 62... Qc6 {[%clk 0:00:11.1]} 63. Qd3 {[%clk 0:00:03.1]} 63... Nc4+
{[%clk 0:00:10.5]} 64. Ke2 {[%clk 0:00:02.8]} 64... Nb6 {[%clk 0:00:09.2]} 65.
Kd2 {[%clk 0:00:02.5]} 65... Nd5 {[%clk 0:00:09.6]} 66. Qxc2 {[%clk 0:00:02.1]}
66... Qxc2+ {[%clk 0:00:09.6]} 67. Kxc2 {[%clk 0:00:02.3]} 67... Kb6 {[%clk
0:00:09.1]} 68. Kd3 {[%clk 0:00:02.7]} 68... Kc5 {[%clk 0:00:07.2]} 69. Ba3+
{[%clk 0:00:02.4]} 69... Kc6 {[%clk 0:00:06.8]} 70. Kd4 {[%clk 0:00:03.1]} 70...
Nb6 {[%clk 0:00:06.1]} 71. Bb4 {[%clk 0:00:01.3]} 71... Nd7 {[%clk 0:00:05.2]}
0-1

[Event "*** SCC Grand Prix: Titled Tuesday Blitz"]
[Site "Chess.com"]
[Date "2020.10.06"]
[Round "5"]
[White "awesomevishesh"]
[Black "MasterMK73"]
[Result "1-0"]
[WhiteElo "2416"]
[BlackElo "2203"]
[TimeControl "180+1"]
[EndTime "10:58:40 PDT"]
[Termination "awesomevishesh won by resignation"]

1. e4 {[%clk 0:03:00.9]} 1... c5 {[%clk 0:02:58.8]} 2. Nf3 {[%clk 0:03:00.3]}
2... a6 {[%clk 0:02:58.6]} 3. c4 {[%clk 0:02:59.5]} 3... e6 {[%clk 0:02:57.3]}
4. Nc3 {[%clk 0:02:57]} 4... Qc7 {[%clk 0:02:56.2]} 5. d4 {[%clk 0:02:56.3]}
5... cxd4 {[%clk 0:02:56.4]} 6. Nxd4 {[%clk 0:02:56.9]} 6... Nf6 {[%clk
0:02:55.9]} 7. a3 {[%clk 0:02:56.3]} 7... b6 {[%clk 0:02:55.6]} 8. Be2 {[%clk
0:02:51.3]} 8... Bb7 {[%clk 0:02:54.8]} 9. f3 {[%clk 0:02:34.6]} 9... d6 {[%clk
0:02:53.6]} 10. Be3 {[%clk 0:02:34.1]} 10... Nbd7 {[%clk 0:02:53]} 11. O-O
{[%clk 0:02:34.1]} 11... Be7 {[%clk 0:02:53.1]} 12. Qd2 {[%clk 0:02:26.4]} 12...
O-O {[%clk 0:02:52.7]} 13. Rfd1 {[%clk 0:02:25.7]} 13... Rfc8 {[%clk 0:02:51.3]}
14. Rac1 {[%clk 0:02:19.4]} 14... Qd8 {[%clk 0:02:47.9]} 15. b4 {[%clk
0:02:18.4]} 15... Rab8 {[%clk 0:02:41.3]} 16. Nb3 {[%clk 0:02:14.4]} 16... Qe8
{[%clk 0:02:39]} 17. Bf4 {[%clk 0:02:08.2]} 17... Ne5 {[%clk 0:02:36.4]} 18.
Bxe5 {[%clk 0:02:07.5]} 18... dxe5 {[%clk 0:02:35.8]} 19. Qe3 {[%clk 0:02:02.7]}
19... Ba8 {[%clk 0:02:29.9]} 20. Kh1 {[%clk 0:01:54.3]} 20... Nh5 {[%clk
0:02:26.8]} 21. g3 {[%clk 0:01:40.9]} 21... h6 {[%clk 0:02:26]} 22. Rc2 {[%clk
0:01:30.3]} 22... g5 {[%clk 0:01:55.6]} 23. Kg2 {[%clk 0:00:56.8]} 23... Ng7
{[%clk 0:01:44.8]} 24. Rcd2 {[%clk 0:00:50.4]} 24... Bf8 {[%clk 0:01:25.3]} 25.
Rh1 {[%clk 0:00:46.7]} 25... f5 {[%clk 0:01:18.7]} 26. exf5 {[%clk 0:00:42.4]}
26... Nxf5 {[%clk 0:01:18.5]} 27. Qf2 {[%clk 0:00:39.6]} 27... Bg7 {[%clk
0:01:03.8]} 28. Ne4 {[%clk 0:00:39.4]} 28... Rd8 {[%clk 0:00:58]} 29. Rhd1
{[%clk 0:00:38.4]} 29... Nd4 {[%clk 0:00:51.9]} 30. Nxd4 {[%clk 0:00:37.7]}
30... exd4 {[%clk 0:00:52]} 31. Bd3 {[%clk 0:00:37.7]} 31... Qh5 {[%clk
0:00:47.5]} 32. Re1 {[%clk 0:00:30.9]} 32... Rf8 {[%clk 0:00:47.2]} 33. g4
{[%clk 0:00:26.9]} 33... Qf7 {[%clk 0:00:39.6]} 34. Qg3 {[%clk 0:00:24.7]} 34...
Rbd8 {[%clk 0:00:36.2]} 35. Rh1 {[%clk 0:00:20.8]} 35... e5 {[%clk 0:00:34.5]}
36. h4 {[%clk 0:00:20.2]} 36... Bxe4 {[%clk 0:00:20.9]} 37. Bxe4 {[%clk
0:00:20]} 37... Qf4 {[%clk 0:00:21.2]} 38. Qxf4 {[%clk 0:00:19.3]} 38... exf4
{[%clk 0:00:16.3]} 39. hxg5 {[%clk 0:00:18.6]} 39... hxg5 {[%clk 0:00:15.5]} 40.
Bd5+ {[%clk 0:00:17.1]} 40... Rxd5 {[%clk 0:00:12.8]} 41. cxd5 {[%clk 0:00:18]}
41... Rd8 {[%clk 0:00:12.8]} 42. Re1 {[%clk 0:00:14.6]} 42... Rxd5 {[%clk
0:00:12]} 43. Re7 {[%clk 0:00:13.6]} 43... d3 {[%clk 0:00:11.4]} 44. Rc7 {[%clk
0:00:10.2]} 44... Be5 {[%clk 0:00:10.2]} 45. Rc6 {[%clk 0:00:09.2]} 45... b5
{[%clk 0:00:10.2]} 46. Kf1 {[%clk 0:00:08.5]} 46... Ba1 {[%clk 0:00:07.9]} 47.
Rc1 {[%clk 0:00:07.9]} 47... Bg7 {[%clk 0:00:06.3]} 48. Rcd1 {[%clk 0:00:07.9]}
48... Be5 {[%clk 0:00:04.9]} 49. Rxd3 {[%clk 0:00:08]} 49... Rxd3 {[%clk
0:00:04.8]} 50. Rxd3 {[%clk 0:00:08.3]} 50... Kf7 {[%clk 0:00:05.7]} 51. Rd7+
{[%clk 0:00:07.8]} 51... Ke6 {[%clk 0:00:06.3]} 52. Ra7 {[%clk 0:00:07.8]} 52...
Kd5 {[%clk 0:00:06.1]} 53. Rxa6 {[%clk 0:00:08]} 53... Kc4 {[%clk 0:00:06.6]}
54. Ke2 {[%clk 0:00:08]} 54... Kb3 {[%clk 0:00:06.3]} 55. Ra5 {[%clk 0:00:07.5]}
55... Bb2 {[%clk 0:00:06]} 56. Rxb5 {[%clk 0:00:07.6]} 56... Bxa3 {[%clk
0:00:06.5]} 57. Rxg5 {[%clk 0:00:07.5]} 57... Kxb4 {[%clk 0:00:07.1]} 58. Rf5
{[%clk 0:00:07.5]} 58... Bc1 {[%clk 0:00:07.7]} 59. g5 {[%clk 0:00:07.9]} 59...
Kc4 {[%clk 0:00:08.4]} 60. g6 {[%clk 0:00:08]} 60... Bb2 {[%clk 0:00:09]} 61.
Rxf4+ {[%clk 0:00:08.1]} 61... Kd5 {[%clk 0:00:09.6]} 62. Rf7 {[%clk 0:00:08.1]}
62... Ke6 {[%clk 0:00:09.3]} 63. f4 {[%clk 0:00:08.3]} 63... Bc3 {[%clk
0:00:08.2]} 64. f5+ {[%clk 0:00:08.6]} 64... Kd6 {[%clk 0:00:07.6]} 65. g7
{[%clk 0:00:08.7]} 65... Bxg7 {[%clk 0:00:07.6]} 66. Rxg7 {[%clk 0:00:09.6]}
66... Ke5 {[%clk 0:00:08.2]} 67. Rf7 {[%clk 0:00:08.6]} 67... Kd6 {[%clk
0:00:08.6]} 68. Kf3 {[%clk 0:00:08.6]} 68... Ke5 {[%clk 0:00:09]} 69. Kg4 {[%clk
0:00:08.9]} 69... Kd6 {[%clk 0:00:09.2]} 70. Kg5 {[%clk 0:00:09.5]} 70... Ke5
{[%clk 0:00:09.9]} 71. Re7+ {[%clk 0:00:09.6]} 71... Kd6 {[%clk 0:00:10.8]} 1-0

[Event "*** SCC Grand Prix: Titled Tuesday Blitz"]
[Site "Chess.com"]
[Date "2020.10.06"]
[Round "5"]
[White "Rakesh"]
[Black "MFBerna"]
[Result "1-0"]
[WhiteElo "2494"]
[BlackElo "2299"]
[TimeControl "180+1"]
[EndTime "10:58:41 PDT"]
[Termination "Rakesh won by resignation"]

1. e4 {[%clk 0:03:00.9]} 1... c5 {[%clk 0:02:57.7]} 2. c3 {[%clk 0:03:00.8]}
2... d5 {[%clk 0:02:55.2]} 3. exd5 {[%clk 0:03:00.8]} 3... Qxd5 {[%clk
0:02:56.1]} 4. d4 {[%clk 0:03:00.9]} 4... Nc6 {[%clk 0:02:55.4]} 5. Nf3 {[%clk
0:03:00.7]} 5... Bg4 {[%clk 0:02:55.4]} 6. Be2 {[%clk 0:02:57.9]} 6... e6 {[%clk
0:02:55.6]} 7. h3 {[%clk 0:02:56.8]} 7... Bh5 {[%clk 0:02:54.6]} 8. Be3 {[%clk
0:02:56.3]} 8... cxd4 {[%clk 0:02:53.9]} 9. cxd4 {[%clk 0:02:57.2]} 9... Nf6
{[%clk 0:02:52.6]} 10. O-O {[%clk 0:02:56.5]} 10... Be7 {[%clk 0:02:51.9]} 11.
Nc3 {[%clk 0:02:56.7]} 11... Qd6 {[%clk 0:02:50.2]} 12. a3 {[%clk 0:02:57.1]}
12... O-O {[%clk 0:02:49.4]} 13. Rc1 {[%clk 0:02:57]} 13... Rac8 {[%clk
0:02:43.9]} 14. Re1 {[%clk 0:02:50.9]} 14... Rfd8 {[%clk 0:02:43.1]} 15. Qd2
{[%clk 0:02:07.4]} 15... Bxf3 {[%clk 0:02:34.3]} 16. Bxf3 {[%clk 0:02:06.2]}
16... Nxd4 {[%clk 0:02:35.2]} 17. Bxd4 {[%clk 0:02:04.1]} 17... Qxd4 {[%clk
0:02:36.1]} 18. Qxd4 {[%clk 0:02:03]} 18... Rxd4 {[%clk 0:02:37]} 19. Nb5 {[%clk
0:01:40]} 19... Rxc1 {[%clk 0:02:36.7]} 20. Rxc1 {[%clk 0:01:39.1]} 20... Rd2
{[%clk 0:02:24.2]} 21. Rc8+ {[%clk 0:01:30.6]} 21... Bf8 {[%clk 0:02:23.9]} 22.
Bxb7 {[%clk 0:01:18.1]} 22... Rxb2 {[%clk 0:02:15.3]} 23. a4 {[%clk 0:01:16.4]}
23... g6 {[%clk 0:01:53.9]} 24. g3 {[%clk 0:00:50]} 24... Kg7 {[%clk 0:01:44.4]}
25. Bf3 {[%clk 0:00:48.9]} 25... a6 {[%clk 0:01:29]} 26. Nc7 {[%clk 0:00:43]}
26... a5 {[%clk 0:01:23.3]} 27. Nb5 {[%clk 0:00:37.2]} 27... Nd7 {[%clk
0:01:12.2]} 28. Rc7 {[%clk 0:00:32.5]} 28... Nb6 {[%clk 0:00:53.3]} 29. Nd4
{[%clk 0:00:26.3]} 29... Kf6 {[%clk 0:00:50.3]} 30. Nc6 {[%clk 0:00:17.8]} 30...
Bc5 {[%clk 0:00:35.8]} 31. Nd8 {[%clk 0:00:16.9]} 31... Bxf2+ {[%clk 0:00:29]}
32. Kf1 {[%clk 0:00:17.2]} 32... Bxg3 {[%clk 0:00:26.8]} 33. Rxf7+ {[%clk
0:00:17.7]} 33... Ke5 {[%clk 0:00:23]} 34. Nc6+ {[%clk 0:00:18.6]} 34... Kd6
{[%clk 0:00:23.6]} 35. Nd4 {[%clk 0:00:18.3]} 35... Nc4 {[%clk 0:00:19.1]} 36.
Nb5+ {[%clk 0:00:17.4]} 36... Kc5 {[%clk 0:00:17.3]} 37. Bg4 {[%clk 0:00:10.6]}
37... Ne3+ {[%clk 0:00:14.8]} 38. Kg1 {[%clk 0:00:11.1]} 38... e5 {[%clk
0:00:13.4]} 39. Rc7+ {[%clk 0:00:09.9]} 39... Kb4 {[%clk 0:00:12.6]} 40. Rc1
{[%clk 0:00:10]} 40... Bf4 {[%clk 0:00:07.3]} 41. Re1 {[%clk 0:00:08.5]} 41...
Rg2+ {[%clk 0:00:06.9]} 42. Kh1 {[%clk 0:00:08.5]} 42... Rh2+ {[%clk 0:00:07.8]}
43. Kg1 {[%clk 0:00:08.6]} 43... Rb2 {[%clk 0:00:06.9]} 44. Nd6 {[%clk
0:00:07.3]} 44... h5 {[%clk 0:00:06.4]} 45. Bf3 {[%clk 0:00:07.2]} 45... Kxa4
{[%clk 0:00:05]} 46. Ne4 {[%clk 0:00:07.7]} 46... Kb4 {[%clk 0:00:05]} 47. Nf2
{[%clk 0:00:06.1]} 47... Kc5 {[%clk 0:00:04]} 48. Nd3+ {[%clk 0:00:05.7]} 48...
Kd4 {[%clk 0:00:04]} 49. Nxb2 {[%clk 0:00:06.6]} 49... Bg3 {[%clk 0:00:03.9]}
50. Re2 {[%clk 0:00:06.4]} 50... e4 {[%clk 0:00:02.9]} 51. Bg2 {[%clk
0:00:06.1]} 51... Nf5 {[%clk 0:00:02.1]} 52. Nd1 {[%clk 0:00:05.9]} 52... e3
{[%clk 0:00:03]} 53. Bf3 {[%clk 0:00:04.3]} 53... a4 {[%clk 0:00:02.9]} 54. Bg2
{[%clk 0:00:04.4]} 54... a3 {[%clk 0:00:02.3]} 55. Bc6 {[%clk 0:00:05]} 55...
Bd6 {[%clk 0:00:02.5]} 56. Ra2 {[%clk 0:00:05.3]} 56... Ne7 {[%clk 0:00:01.5]}
57. Ba4 {[%clk 0:00:04.8]} 57... Nf5 {[%clk 0:00:01.8]} 58. Kf1 {[%clk
0:00:05.3]} 58... Ng3+ {[%clk 0:00:01.7]} 59. Kg2 {[%clk 0:00:05.8]} 59... Ne4
{[%clk 0:00:02.6]} 60. Bc2 {[%clk 0:00:05.4]} 60... Nd2 {[%clk 0:00:02.2]} 61.
Bxg6 {[%clk 0:00:05.4]} 61... h4 {[%clk 0:00:02.2]} 62. Kg1 {[%clk 0:00:02.8]}
62... e2 {[%clk 0:00:01.7]} 63. Rxd2+ {[%clk 0:00:01.6]} 63... Ke5 {[%clk
0:00:01.9]} 64. Rxe2+ {[%clk 0:00:02.5]} 64... Kf6 {[%clk 0:00:02.5]} 65. Ra2
{[%clk 0:00:03.2]} 65... Kxg6 {[%clk 0:00:02.3]} 66. Kg2 {[%clk 0:00:04.1]}
66... Kf5 {[%clk 0:00:02.8]} 67. Ne3+ {[%clk 0:00:05]} 67... Ke4 {[%clk
0:00:03.3]} 68. Nc2 {[%clk 0:00:05.9]} 68... Kd3 {[%clk 0:00:02.9]} 69. Nxa3
{[%clk 0:00:06.8]} 69... Kc3 {[%clk 0:00:03.6]} 70. Nb5+ {[%clk 0:00:07.1]}
70... Kb3 {[%clk 0:00:04.5]} 1-0

[Event "*** SCC Grand Prix: Titled Tuesday Blitz"]
[Site "Chess.com"]
[Date "2020.10.06"]
[Round "5"]
[White "smshk35"]
[Black "chessmachine14"]
[Result "1-0"]
[WhiteElo "2452"]
[BlackElo "2277"]
[TimeControl "180+1"]
[EndTime "10:58:45 PDT"]
[Termination "smshk35 won by checkmate"]

1. e4 {[%clk 0:03:00.9]} 1... c5 {[%clk 0:02:59.5]} 2. Nf3 {[%clk 0:03:00]} 2...
e6 {[%clk 0:02:59.8]} 3. d4 {[%clk 0:02:59]} 3... cxd4 {[%clk 0:03:00.3]} 4.
Nxd4 {[%clk 0:02:59.9]} 4... Nf6 {[%clk 0:03:00.6]} 5. Nc3 {[%clk 0:02:59.7]}
5... d6 {[%clk 0:03:00.8]} 6. Be3 {[%clk 0:02:56.8]} 6... Be7 {[%clk 0:03:00.3]}
7. Bd3 {[%clk 0:02:56.8]} 7... Nc6 {[%clk 0:02:57.1]} 8. O-O {[%clk 0:02:56.3]}
8... O-O {[%clk 0:02:56]} 9. f4 {[%clk 0:02:56.2]} 9... e5 {[%clk 0:02:38]} 10.
Nb3 {[%clk 0:02:47.8]} 10... Ng4 {[%clk 0:02:32.2]} 11. Qf3 {[%clk 0:02:34]}
11... Nxe3 {[%clk 0:02:31.4]} 12. Qxe3 {[%clk 0:02:34.9]} 12... exf4 {[%clk
0:02:30]} 13. Qxf4 {[%clk 0:02:33]} 13... Ne5 {[%clk 0:02:22.4]} 14. Rad1 {[%clk
0:02:30.7]} 14... Bg5 {[%clk 0:02:21.3]} 15. Qg3 {[%clk 0:02:28.4]} 15... Bg4
{[%clk 0:02:05.8]} 16. Be2 {[%clk 0:02:26.7]} 16... h5 {[%clk 0:01:13.7]} 17. h3
{[%clk 0:02:05.7]} 17... h4 {[%clk 0:00:49.3]} 18. Qxe5 {[%clk 0:01:57.1]} 18...
Qb6+ {[%clk 0:00:31.7]} 19. Qd4 {[%clk 0:01:36.9]} 19... Be3+ {[%clk 0:00:31.6]}
20. Kh1 {[%clk 0:01:37.3]} 20... Bxd4 {[%clk 0:00:29.9]} 21. Bxg4 {[%clk
0:01:37.6]} 21... Be5 {[%clk 0:00:26.6]} 22. Nd5 {[%clk 0:01:36.9]} 22... Qd8
{[%clk 0:00:25.6]} 23. c3 {[%clk 0:01:35.8]} 23... g6 {[%clk 0:00:22.7]} 24. Nd2
{[%clk 0:01:35.3]} 24... Qg5 {[%clk 0:00:15.6]} 25. Nf3 {[%clk 0:01:32.8]} 25...
Qh6 {[%clk 0:00:14.2]} 26. Nxe5 {[%clk 0:01:32.5]} 26... dxe5 {[%clk 0:00:14.8]}
27. Ne7+ {[%clk 0:01:27.8]} 27... Kg7 {[%clk 0:00:14.6]} 28. Rd7 {[%clk
0:01:28.3]} 28... Rad8 {[%clk 0:00:14.2]} 29. Rxb7 {[%clk 0:01:28.3]} 29... Rd2
{[%clk 0:00:14.4]} 30. Nd5 {[%clk 0:01:03.8]} 30... Rc2 {[%clk 0:00:13.1]} 31.
Rd1 {[%clk 0:00:43.9]} 31... Qg5 {[%clk 0:00:11.8]} 32. a4 {[%clk 0:00:40.6]}
32... Kh6 {[%clk 0:00:11.6]} 33. b4 {[%clk 0:00:34.3]} 33... f5 {[%clk
0:00:11.8]} 34. Bf3 {[%clk 0:00:34.6]} 34... fxe4 {[%clk 0:00:11.6]} 35. Bxe4
{[%clk 0:00:35.5]} 35... Re2 {[%clk 0:00:11.8]} 36. Ne3 {[%clk 0:00:10.2]} 36...
Rxe3 {[%clk 0:00:10.1]} 37. Bc6 {[%clk 0:00:10.5]} 37... Re2 {[%clk 0:00:10.3]}
38. Rdd7 {[%clk 0:00:09.3]} 38... Qc1+ {[%clk 0:00:09.3]} 39. Kh2 {[%clk
0:00:09]} 39... Qf4+ {[%clk 0:00:07.4]} 40. Kg1 {[%clk 0:00:09.3]} 40... Qf1+
{[%clk 0:00:07.5]} 41. Kh2 {[%clk 0:00:09.8]} 41... Rxg2+ {[%clk 0:00:07.2]} 42.
Bxg2 {[%clk 0:00:09.5]} 42... Qf4+ {[%clk 0:00:07.6]} 43. Kg1 {[%clk 0:00:09.3]}
43... Kg5 {[%clk 0:00:08.5]} 44. Rd1 {[%clk 0:00:07.4]} 44... Qe3+ {[%clk
0:00:08.6]} 45. Kh1 {[%clk 0:00:07.5]} 45... Rf2 {[%clk 0:00:09.5]} 46. Rg1
{[%clk 0:00:07.5]} 46... Qg3 {[%clk 0:00:09.1]} 47. Rf7 {[%clk 0:00:04.2]} 47...
Kh6 {[%clk 0:00:08.5]} 48. Rxf2 {[%clk 0:00:03.9]} 48... Qxf2 {[%clk 0:00:09.4]}
49. Be4 {[%clk 0:00:04.3]} 49... Qe3 {[%clk 0:00:08.6]} 50. Rxg6+ {[%clk
0:00:04.6]} 50... Kh5 {[%clk 0:00:08.4]} 51. Rg4 {[%clk 0:00:05.5]} 51... Qxe4+
{[%clk 0:00:08.1]} 52. Rxe4 {[%clk 0:00:04.8]} 52... Kg5 {[%clk 0:00:08.5]} 53.
Rxe5+ {[%clk 0:00:05.7]} 53... Kf4 {[%clk 0:00:09.1]} 54. Ra5 {[%clk 0:00:06.6]}
54... Kg3 {[%clk 0:00:09.4]} 55. Rxa7 {[%clk 0:00:07.5]} 55... Kxh3 {[%clk
0:00:10.3]} 56. Rh7 {[%clk 0:00:08]} 56... Kg3 {[%clk 0:00:11.2]} 57. Rxh4
{[%clk 0:00:08.7]} 57... Kxh4 {[%clk 0:00:11.3]} 58. a5 {[%clk 0:00:09.6]} 58...
Kg4 {[%clk 0:00:12.2]} 59. a6 {[%clk 0:00:10.5]} 59... Kg3 {[%clk 0:00:13.1]}
60. a7 {[%clk 0:00:11.4]} 60... Kf2 {[%clk 0:00:14]} 61. a8=Q {[%clk 0:00:12.3]}
61... Ke2 {[%clk 0:00:14.6]} 62. b5 {[%clk 0:00:13.2]} 62... Kd3 {[%clk
0:00:15.5]} 63. b6 {[%clk 0:00:14.1]} 63... Kc2 {[%clk 0:00:16.4]} 64. b7 {[%clk
0:00:15]} 64... Kc1 {[%clk 0:00:17.3]} 65. b8=Q {[%clk 0:00:15.9]} 65... Kc2
{[%clk 0:00:18.2]} 66. Qa2+ {[%clk 0:00:16.1]} 66... Kxc3 {[%clk 0:00:19.1]} 67.
Qc8+ {[%clk 0:00:15.9]} 67... Kd4 {[%clk 0:00:20]} 68. Qa4+ {[%clk 0:00:15.3]}
68... Ke3 {[%clk 0:00:20.9]} 69. Qb3+ {[%clk 0:00:15.2]} 69... Kf4 {[%clk
0:00:20.9]} 70. Qcc4+ {[%clk 0:00:15.3]} 70... Ke5 {[%clk 0:00:21.8]} 71. Qbb5+
{[%clk 0:00:16.1]} 71... Kf6 {[%clk 0:00:22.7]} 72. Qcc6+ {[%clk 0:00:16.8]}
72... Kg7 {[%clk 0:00:22]} 73. Qbb7+ {[%clk 0:00:17.7]} 73... Kg8 {[%clk
0:00:21.2]} 74. Qg6+ {[%clk 0:00:17.3]} 74... Kf8 {[%clk 0:00:20.5]} 75. Qf6+
{[%clk 0:00:17.5]} 75... Ke8 {[%clk 0:00:18.5]} 76. Qe4+ {[%clk 0:00:13.7]}
76... Kd7 {[%clk 0:00:17.3]} 77. Qh7+ {[%clk 0:00:13.9]} 77... Kc8 {[%clk
0:00:15.3]} 78. Qc2+ {[%clk 0:00:13.5]} 78... Kb8 {[%clk 0:00:14.9]} 79. Qd8+
{[%clk 0:00:11.2]} 79... Ka7 {[%clk 0:00:15.1]} 80. Qdc7+ {[%clk 0:00:10.7]}
80... Ka6 {[%clk 0:00:15.3]} 81. Qa2+ {[%clk 0:00:10.7]} 81... Kb5 {[%clk
0:00:15.6]} 82. Qac4# {[%clk 0:00:10.7]} 1-0